fUSD/lending_fUSD_20260315
["ID","MTS","AMOUNT","RATE_DAILY","PERIOD"]
[408382105,1773534645670,-1596.0,0.0002295,5]
[408382106,1773534645679,-1283.0,0.0002295,5]
[408382107,1773534645689,-700.0,0.00022982,7]
[408382108,1773534645699,-2400.0,0.00022982,7]
[408382109,1773534645708,-450.0,0.00023,2]
[408382110,1773534645718,-2216.23168805,0.00023073,2]
[408382111,1773534645728,-6809.89028518,0.00023203,2]
[408382113,1773534645737,-1100.0,0.00023256,7]
[408382114,1773534645747,-14163.47126231,0.00023304,2]
[408382116,1773534645756,-152.0,0.00023441,6]
[408382117,1773534645766,-2258.0,0.00023455,2]
[408382118,1773534645775,-500.0,0.00023564,2]
[408382119,1773534645784,-85985.7211131,0.00023565,2]
[408382120,1773534645794,-1205.6321,0.00023655,2]
[408382121,1773534645802,-10000.0,0.00023655,2]
[408382122,1773534645812,-288.36985485,0.00023723,5]
[408382123,1773534645821,-334.58,0.00023764,2]
[408382124,1773534645830,-153.99407455,0.00023923,2]
[408382125,1773534645840,-9035.0,0.00023963,2]
[408382126,1773534645850,-6356.0,0.00023965,2]
[408382127,1773534645860,-400.0,0.0002397,2]
[408382128,1773534645870,-400.0,0.0002397,2]
[408382129,1773534645879,-2954.42978653,0.0002401,2]
[408382130,1773534645889,-700.0,0.00024078,7]
[408382131,1773534645898,-2400.0,0.00024078,7]
[408382132,1773534645907,-152.0,0.00024119,7]
[408382133,1773534645916,-203.227023,0.000242,2]
[408382134,1773534645927,-153.58,0.00024201,2]
[408382135,1773534645936,-500.0,0.0002425,2]
[408382136,1773534645945,-500.0,0.0002425,2]
[408382137,1773534645954,-1317.84763407,0.00024251,2]
[408382138,1773534645963,-200.0,0.00024251,2]
[408382139,1773534645972,-177.97,0.00024251,5]
[408382140,1773534645981,-200.0,0.00024251,2]
[408382141,1773534645991,-400.0,0.0002427,2]
[408382142,1773534645999,-334.5916154,0.00024331,2]
[408382143,1773534646009,-1100.0,0.00024352,7]
[408382144,1773534646018,-455.50050313,0.00024401,2]
[408382145,1773534646028,-200.0,0.00024494,2]
[408382146,1773534646037,-200.0,0.00024494,2]
[408382147,1773534646046,-697.14,0.00024658,2]
[408382148,1773534646056,-1000.0,0.00024658,2]
[408382149,1773534646066,-150.0,0.00024658,2]
[408382150,1773534646075,-200.0,0.00024738,2]
[408382151,1773534646096,-500.0,0.00024784,2]
[408382152,1773534646115,-152.0,0.00024797,8]
[408382153,1773534646133,-191.05,0.000248,11]
[408382154,1773534646142,-6809.89028518,0.00024814,2]
[408382155,1773534646152,-400.0,0.0002487,2]
[408382156,1773534646161,-300.0,0.0002487,2]
[408382157,1773534646171,-577.81584492,0.00024876,2]
[408382158,1773534646180,-500.0,0.00024899,2]
[408382159,1773534646189,-500.0,0.00024899,2]
[408382160,1773534646200,-156.157635,0.000249,2]
[408382161,1773534646210,-151.0,0.000249,2]
[408382162,1773534646219,-600365.221386,0.000249,3]
[408382163,1773534646227,-5000.0,0.000249,2]
[408382164,1773534646237,-3742.720409,0.000249,2]
[408382165,1773534646246,-200.0,0.00024986,2]
[408382166,1773534646255,-151.0,0.00024997,7]
[408382167,1773534646264,-150.0,0.00024997,30]
[408382168,1773534646273,-150.0,0.00024997,30]
[408382169,1773534646283,-150.0,0.00024997,30]
[408382170,1773534646292,-150.0,0.00024997,30]
[408382171,1773534646302,-150.0,0.00024997,30]
[408382173,1773534646311,-150.0,0.00024997,30]
[408382175,1773534646321,-500.0,0.00024997,16]
[408382177,1773534646330,-200.0,0.00024997,30]
[408382179,1773534646339,-500.0,0.00024997,30]
[408382181,1773534646349,-500.0,0.00024997,30]
[408382183,1773534646358,-500.0,0.00024997,30]
[408382185,1773534646367,-150.0,0.00024997,30]
[408382187,1773534646377,-500.0,0.00024997,30]
[408382189,1773534646386,-500.0,0.00024997,30]
[408382191,1773534646395,-500.0,0.00024997,30]
[408382193,1773534646404,-500.0,0.00024997,30]
[408382195,1773534646413,-500.0,0.00024999,2]
[408382197,1773534646424,-500.0,0.00024999,2]
[408382199,1773534646439,-1119.02038488,0.00025,2]
[408382201,1773534646457,-208.46180981,0.00025,2]
[408382203,1773534646467,-1793.03849057,0.00025,2]
[408382205,1773534646476,-540.0,0.00025,2]
[408382207,1773534646486,-613.62266769,0.00025,2]
[408382209,1773534646500,-168.06720369,0.00025,2]
[408382211,1773534646509,-150.0,0.00025,2]
[408382213,1773534646519,-10000.0,0.00025,7]
[408382215,1773534646528,-50102.55485621,0.00025,10]
[408382217,1773534646538,-500.0,0.00025,30]
[408382219,1773534646548,-500.0,0.00025,30]
[408382221,1773534646558,-500.0,0.00025,30]
[408382223,1773534646567,-500.0,0.00025,30]
[408382225,1773534646577,-500.0,0.00025,30]
[408382227,1773534646586,-500.0,0.00025,30]
[408382229,1773534646595,-500.0,0.00025,30]
[408382231,1773534646605,-500.0,0.00025,30]
[408382233,1773534646616,-500.0,0.00025,30]
[408382235,1773534646626,-500.0,0.00025,30]
[408382237,1773534646635,-500.0,0.00025,30]
[408382239,1773534646645,-500.0,0.00025,30]
[408382241,1773534646654,-500.0,0.00025,30]
[408382243,1773534646667,-500.0,0.00025,30]
[408382245,1773534646677,-500.0,0.00025,30]
[408382247,1773534646686,-500.0,0.00025,30]
[408382249,1773534646696,-500.0,0.00025,30]
[408382251,1773534646705,-500.0,0.00025,30]
[408382253,1773534646714,-500.0,0.00025,30]
[408382255,1773534646724,-500.0,0.00025,30]
[408382257,1773534646733,-500.0,0.00025,30]
[408382259,1773534646742,-500.0,0.00025,30]
[408382261,1773534646751,-500.0,0.00025,30]
[408382263,1773534646760,-500.0,0.00025,30]
[408382265,1773534646769,-500.0,0.00025,30]
[408382267,1773534646778,-500.0,0.00025,30]
[408382269,1773534646788,-500.0,0.00025,30]
[408382271,1773534646797,-500.0,0.00025,30]
[408382273,1773534646806,-500.0,0.00025,30]
[408382275,1773534646816,-500.0,0.00025,30]
[408382277,1773534646826,-500.0,0.00025,30]
[408382279,1773534646836,-500.0,0.00025,30]
[408382281,1773534646846,-500.0,0.00025,30]
[408382283,1773534646855,-500.0,0.00025,30]
[408382285,1773534646864,-500.0,0.00025,30]
[408382287,1773534646873,-500.0,0.00025,30]
[408382289,1773534646882,-500.0,0.00025,30]
[408382291,1773534646891,-500.0,0.00025,30]
[408382293,1773534646901,-511.49245398,0.00025,30]
[408382295,1773534646910,-500.0,0.00025,30]
[408382297,1773534646920,-500.0,0.00025,30]
[408382299,1773534646929,-500.0,0.00025,30]
[408382301,1773534646938,-500.0,0.00025,30]
[408382303,1773534646947,-500.0,0.00025,30]
[408382305,1773534646956,-500.0,0.00025,30]
[408382307,1773534646965,-500.0,0.00025,30]
[408382309,1773534646975,-500.0,0.00025,30]
[408382311,1773534646985,-500.0,0.00025,30]
[408382313,1773534646994,-500.0,0.00025,30]
[408382315,1773534647003,-500.0,0.00025,30]
[408382317,1773534647012,-500.0,0.00025,30]
[408382319,1773534647022,-500.0,0.00025,30]
[408382321,1773534647031,-500.0,0.00025,30]
[408382323,1773534647040,-500.0,0.00025,30]
[408382325,1773534647049,-500.0,0.00025,30]
[408382327,1773534647058,-500.0,0.00025,30]
[408382329,1773534647067,-500.0,0.00025,30]
[408382331,1773534647076,-500.0,0.00025,30]
[408382332,1773534647091,-500.0,0.00025,30]
[408382334,1773534647099,-500.0,0.00025,30]
[408382336,1773534647109,-500.0,0.00025,30]
[408382338,1773534647118,-500.0,0.00025,30]
[408382340,1773534647127,-500.0,0.00025,30]
[408382342,1773534647136,-500.0,0.00025,30]
[408382344,1773534647145,-500.0,0.00025,30]
[408382346,1773534647154,-500.0,0.00025,30]
[408382348,1773534647163,-500.0,0.00025,30]
[408382350,1773534647172,-500.0,0.00025,30]
[408382352,1773534647183,-500.0,0.00025,30]
[408382354,1773534647192,-500.0,0.00025,30]
[408382356,1773534647201,-500.0,0.00025,30]
[408382358,1773534647210,-500.0,0.00025,30]
[408382360,1773534647219,-500.0,0.00025,30]
[408382362,1773534647228,-500.0,0.00025,30]
[408382364,1773534647237,-500.0,0.00025,30]
[408382366,1773534647246,-500.0,0.00025,30]
[408382368,1773534647257,-500.0,0.00025,30]
[408382370,1773534647267,-500.0,0.00025,30]
[408382372,1773534647275,-500.0,0.00025,30]
[408382374,1773534647284,-500.0,0.00025,30]
[408382376,1773534647293,-500.0,0.00025,30]
[408382378,1773534647302,-500.0,0.00025,30]
[408382380,1773534647311,-500.0,0.00025,30]
[408382382,1773534647321,-500.0,0.00025,30]
[408382384,1773534647330,-500.0,0.00025,30]
[408382386,1773534647350,-500.0,0.00025,30]
[408382388,1773534647363,-500.0,0.00025,30]
[408382390,1773534647372,-500.0,0.00025,30]
[408382392,1773534647382,-500.0,0.00025,30]
[408382394,1773534647391,-500.0,0.00025,30]
[408382396,1773534647400,-500.0,0.00025,30]
[408382398,1773534647409,-500.0,0.00025,30]
[408382399,1773534647418,-500.0,0.00025,30]
[408382401,1773534647427,-500.0,0.00025,30]
[408382403,1773534647436,-500.0,0.00025,30]
[408382405,1773534647445,-500.0,0.00025,30]
[408382407,1773534647454,-500.0,0.00025,30]
[408382409,1773534647464,-500.0,0.00025,30]
[408382412,1773534647474,-500.0,0.00025,30]
[408382413,1773534647483,-500.0,0.00025,30]
[408382416,1773534647493,-500.0,0.00025,30]
[408382417,1773534647503,-500.0,0.00025,30]
[408382419,1773534647512,-500.0,0.00025,30]
[408382421,1773534647522,-500.0,0.00025,30]
[408382423,1773534647531,-500.0,0.00025,30]
[408382425,1773534647540,-500.0,0.00025,30]
[408382427,1773534647549,-500.0,0.00025,30]
[408382429,1773534647558,-500.0,0.00025,30]
[408382431,1773534647567,-500.0,0.00025,30]
[408382433,1773534647577,-500.0,0.00025,30]
[408382435,1773534647586,-500.0,0.00025,30]
[408382437,1773534647603,-500.0,0.00025,30]
[408382439,1773534647622,-500.0,0.00025,30]
[408382441,1773534647631,-500.0,0.00025,30]
[408382443,1773534647641,-500.0,0.00025,30]
[408382445,1773534647650,-500.0,0.00025,30]
[408382447,1773534647659,-500.0,0.00025,30]
[408382449,1773534647669,-500.0,0.00025,30]
[408382451,1773534647678,-500.0,0.00025,30]
[408382453,1773534647688,-500.0,0.00025,30]
[408382454,1773534647697,-500.0,0.00025,30]
[408382455,1773534647706,-500.0,0.00025,30]
[408382456,1773534647716,-500.0,0.00025,30]
[408382457,1773534647726,-500.0,0.00025,30]
[408382458,1773534647735,-504.6681524,0.00025,30]
[408382459,1773534647744,-500.0,0.00025,30]
[408382460,1773534647753,-500.0,0.00025,30]
[408382461,1773534647762,-500.0,0.00025,30]
[408382462,1773534647772,-900.73470973,0.00025,30]
[408382463,1773534647781,-500.0,0.00025,30]
[408382464,1773534647790,-164.91146962,0.00025,30]
[408382465,1773534647799,-500.0,0.00025,30]
[408382466,1773534647810,-500.0,0.00025,30]
[408382467,1773534647819,-500.0,0.00025,30]
[408382468,1773534647835,-500.0,0.00025,30]
[408382469,1773534647846,-500.0,0.00025,30]
[408382470,1773534647856,-500.0,0.00025,30]
[408382471,1773534647867,-500.0,0.00025,30]
[408382472,1773534647877,-500.0,0.00025,30]
[408382473,1773534647886,-612.85322587,0.00025,30]
[408382474,1773534647896,-250.0,0.00025,30]
[408382475,1773534647905,-804.78590537,0.00025,30]
[408382476,1773534647915,-500.0,0.00025,30]
[408382477,1773534647926,-500.0,0.00025,30]
[408382478,1773534647935,-500.0,0.00025,30]
[408382479,1773534647945,-500.0,0.00025,30]
[408382480,1773534647955,-500.0,0.00025,30]
[408382481,1773534647965,-500.0,0.00025,30]
[408382482,1773534648096,-500.0,0.00025,30]
[408382483,1773534648106,-500.0,0.00025,30]
[408382484,1773534648116,-500.0,0.00025,30]
[408382485,1773534648127,-500.0,0.00025,30]
[408382486,1773534648137,-500.0,0.00025,30]
[408382487,1773534648146,-500.0,0.00025,30]
[408382488,1773534648155,-500.0,0.00025,30]
[408382489,1773534648166,-500.0,0.00025,30]
[408382490,1773534648176,-500.0,0.00025,30]
[408382491,1773534648186,-500.0,0.00025,30]
[408382492,1773534648195,-500.0,0.00025,30]
[408382493,1773534648204,-500.0,0.00025,30]
[408382494,1773534648213,-500.0,0.00025,30]
[408382495,1773534648222,-500.0,0.00025,30]
[408382496,1773534648231,-500.0,0.00025,30]
[408382497,1773534648240,-500.0,0.00025,30]
[408382498,1773534648250,-500.0,0.00025,30]
[408382499,1773534648259,-500.0,0.00025,30]
[408382500,1773534648268,-515.75080416,0.00025,30]
[408382501,1773534648278,-500.0,0.00025,30]
[408382502,1773534648287,-500.0,0.00025,30]
[408382503,1773534648296,-500.0,0.00025,30]
[408382504,1773534648306,-500.0,0.00025,30]
[408382505,1773534648315,-500.0,0.00025,2]
[408382506,1773534648325,-558.0,0.00025014,2]
[408382507,1773534648334,-150.0,0.00025052,30]
[408382508,1773534648343,-150.0,0.00025052,30]
[408382509,1773534648352,-150.0,0.00025052,30]
[408382510,1773534648362,-566.93149302,0.00025052,16]
[408382511,1773534648371,-500.0,0.00025052,30]
[408382512,1773534648380,-500.0,0.00025052,30]
[408382513,1773534648390,-500.0,0.00025052,30]
[408382514,1773534648401,-150.0,0.00025052,30]
[408382515,1773534648411,-500.0,0.00025052,30]
[408382516,1773534648420,-500.0,0.00025052,30]
[408382517,1773534648430,-500.0,0.00025052,30]
[408382518,1773534648439,-500.0,0.00025052,30]
[408382519,1773534648449,-200.0,0.00025107,30]
[408382520,1773534648459,-150.0,0.00025107,30]
[408382521,1773534648468,-150.0,0.00025107,30]
[408382522,1773534648478,-500.0,0.00025107,30]
[408382523,1773534648486,-500.0,0.00025107,30]
[408382524,1773534648496,-500.0,0.00025107,30]
[408382525,1773534648505,-150.0,0.00025107,30]
[408382526,1773534648516,-500.0,0.00025107,30]
[408382527,1773534648525,-500.0,0.00025107,30]
[408382528,1773534648534,-150.0,0.00025107,30]
[408382529,1773534648544,-450.0,0.00025107,30]
[408382530,1773534648553,-150.0,0.00025161,30]
[408382531,1773534648563,-150.0,0.00025161,30]
[408382532,1773534648572,-500.0,0.00025161,30]
[408382533,1773534648582,-204.83861542,0.00025161,30]
[408382534,1773534648591,-500.0,0.00025161,30]
[408382535,1773534648601,-212.33399582,0.00025161,30]
[408382536,1773534648610,-500.0,0.00025161,30]
[408382537,1773534648619,-500.0,0.00025161,30]
[408382538,1773534648628,-700.0,0.00025174,7]
[408382539,1773534648637,-2400.0,0.00025174,7]
[408382540,1773534648647,-1260.0,0.00025205,2]
[408382541,1773534648656,-923.0,0.00025205,2]
[408382542,1773534648666,-1214.0,0.00025205,2]
[408382543,1773534648675,-200.0,0.00025216,30]
[408382544,1773534648684,-200.0,0.00025216,30]
[408382545,1773534648694,-500.0,0.00025216,30]
[408382546,1773534648703,-500.0,0.00025216,30]
[408382547,1773534648712,-500.0,0.00025216,30]
[408382548,1773534648722,-500.0,0.00025216,30]
[408382549,1773534648731,-200.0,0.00025236,2]
[408382550,1773534648741,-500.0,0.00025271,30]
[408382551,1773534648751,-500.0,0.00025271,30]
[408382552,1773534648760,-500.0,0.00025271,30]
[408382553,1773534648768,-500.0,0.00025271,30]
[408382554,1773534648778,-500.0,0.00025326,30]
[408382555,1773534648787,-500.0,0.00025326,30]
[408382556,1773534648796,-500.0,0.00025326,30]
[408382557,1773534648805,-500.0,0.00025326,30]
[408382558,1773534648815,-985.49,0.00025344,2]
[408382559,1773534648824,-500.0,0.00025381,30]
[408382560,1773534648834,-336.58574152,0.00025381,30]
[408382561,1773534648843,-267.0,0.00025381,30]
[408382562,1773534648852,-500.0,0.00025381,30]
[408382563,1773534648861,-500.0,0.00025435,30]
[408382564,1773534648870,-1100.0,0.00025448,7]
[408382565,1773534648880,-152.0,0.00025476,9]
[408382566,1773534648890,-500.0,0.0002549,30]
[408382567,1773534648900,-500.0,0.00025545,30]
[408382568,1773534648909,-18569.0,0.00025549,10]
[408382569,1773534648919,-175.35428283,0.000256,30]
[408382570,1773534648928,-3162.0,0.00025709,2]
[408382571,1773534648937,-350.0,0.00025741,2]
[408382572,1773534648946,-14163.47126231,0.00025747,2]
[408382573,1773534648957,-2840.86698115,0.00025809,22]
[408382574,1773534648967,-150.0,0.0002589,2]
[408382575,1773534648976,-603.70215718,0.0002599,2]
[408382576,1773534648985,-217.49597155,0.00026,2]
[408382577,1773534648995,-506.0,0.00026,10]
[408382578,1773534649004,-305.352754,0.00026026,30]
[408382579,1773534649014,-152.0,0.00026154,10]
[408382580,1773534649025,-509.0,0.00026209,10]
[408382581,1773534649036,-2400.0,0.0002627,7]
[408382582,1773534649046,-700.0,0.0002627,7]
[408382583,1773534649055,-634.12321395,0.000263,2]
[408382584,1773534649065,-12649.0,0.00026359,2]
[408382585,1773534649075,-3055.21128819,0.00026394,23]
[408382586,1773534649088,-1092.80615958,0.000264,2]
[408382587,1773534649098,-6809.89028518,0.00026425,2]
[408382588,1773534649107,-153.58,0.00026484,2]
[408382589,1773534649118,-1100.0,0.00026544,7]
[408382590,1773534649129,-2000.0,0.000266,2]
[408382591,1773534649138,-152.0,0.00026832,11]
[408382592,1773534649148,-250.0,0.00027,2]
[408382593,1773534649157,-1039.62675581,0.00027,2]
[408382594,1773534649167,-530.0,0.00027,2]
[408382595,1773534649177,-2000.0,0.00027,2]
[408382596,1773534649186,-189.6,0.00027,14]
[408382597,1773534649195,-2511.650479,0.0002701,2]
[408382598,1773534649204,-700.0,0.00027028,3]
[408382599,1773534649213,-150.0,0.00027185,2]
[408382600,1773534649223,-350.0,0.00027266,6]
[408382601,1773534649232,-151.0,0.00027302,2]
[408382602,1773534649242,-19186.0077224,0.00027302,2]
[408382603,1773534649251,-200.70999999,0.00027342,2]
[408382604,1773534649261,-151.0,0.00027343,2]
[408382605,1773534649270,-700.0,0.00027366,7]
[408382606,1773534649279,-2033.039,0.00027397,2]
[408382607,1773534649291,-522.39,0.00027397,2]
[408382608,1773534649302,-300.0,0.00027397,2]
[408382609,1773534649311,-1000.0,0.00027397,20]
[408382610,1773534649322,-697.14,0.00027397,2]
[408382611,1773534649331,-151.0,0.00027397,2]
[408382612,1773534649341,-17554.78,0.00027397,10]
[408382613,1773534649350,-14628.99,0.00027397,10]
[408382614,1773534649359,-12190.82,0.00027397,10]
[408382615,1773534649368,-10159.02,0.00027397,10]
[408382616,1773534649377,-500.0,0.00027479,2]
[408382617,1773534649387,-202.34427051,0.000275,2]
[408382618,1773534649396,-552.67296002,0.000275,2]
[408382619,1773534649405,-152.0,0.00027511,12]
[408382620,1773534649415,-152.0,0.00027511,5]
[408382621,1773534649424,-1100.0,0.0002764,14]
[408382622,1773534649440,-1061.27454403,0.00027999,15]
[408382623,1773534649449,-160.0,0.00028,2]
[408382624,1773534649458,-643.0,0.00028,2]
[408382625,1773534649468,-10000.0,0.00028,7]
[408382626,1773534649478,-6809.89028518,0.00028036,2]
[408382627,1773534649488,-4280.9769757,0.00028136,2]
[408382628,1773534649497,-2993.0,0.00028179,2]
[408382629,1773534649507,-14163.47126231,0.00028189,2]
[408382630,1773534649518,-1260.0,0.00028205,2]
[408382631,1773534649528,-923.0,0.00028205,2]
[408382632,1773534649537,-1214.0,0.00028205,2]
[408382633,1773534649546,-2400.0,0.00028462,14]
[408382634,1773534649556,-1100.0,0.00028462,14]
[408382635,1773534649565,-700.0,0.00028462,14]
[408382636,1773534649574,-150.0,0.00028544,2]
[408382637,1773534649584,-497.17261109,0.00028767,2]
[408382638,1773534649593,-153.58,0.00028767,2]
[408382639,1773534649602,-5726.86795665,0.00028953,30]
[408382640,1773534649612,-3140.0,0.00028995,2]
[408382641,1773534649621,-505.19260555,0.00029,2]
[408382642,1773534649630,-3261.41250812,0.00029,120]
[408382643,1773534649639,-1045.0,0.00029,2]
[408382644,1773534649648,-166.64,0.00029835,2]
[408382645,1773534649658,-150.0,0.00029971,2]
[408382646,1773534649668,-238.75162218,0.0002999,2]
[408382647,1773534649677,-1566.2086529,0.0003,2]
[408382648,1773534649686,-2000.0,0.0003,3]
[408382649,1773534649697,-321.36244445,0.0003,2]
[408382650,1773534649706,-1829.42548111,0.0003,2]
[408382651,1773534649716,-164.08720237,0.0003,2]
[408382652,1773534649725,-1015.16,0.0003,120]
[408382653,1773534649734,-10000.0,0.0003,7]
[408382654,1773534649743,-151.0,0.0003,7]
[408382655,1773534649752,-2400.0,0.00030106,14]
[408382656,1773534649761,-1100.0,0.00030106,14]
[408382657,1773534649770,-700.0,0.00030106,14]
[408382658,1773534649779,-151.0,0.00030106,7]
[408382659,1773534649788,-1080.70503769,0.0003013,2]
[408382660,1773534649798,-638.21409835,0.0003013,2]
[408382661,1773534649806,-203.03181002,0.0003013,2]
[408382662,1773534649815,-697.14,0.00030137,2]
[408382663,1773534649824,-155.36,0.000302,7]
[408382664,1773534649833,-2000.0,0.000303,2]
[408382665,1773534649842,-159.69,0.000304,7]
[408382666,1773534649851,-506.0,0.000305,14]
[408382667,1773534649860,-5090.13240952,0.00030539,2]
[408382668,1773534649869,-577.81584492,0.00030546,2]
[408382669,1773534649879,-221.30371164,0.00030589,2]
[408382670,1773534649888,-602.46478949,0.00030589,2]
[408382671,1773534649897,-14163.47126231,0.00030631,2]
[408382672,1773534649906,-1619.49155391,0.0003084,2]
[408382673,1773534649916,-1045.0,0.00031,2]
[408382674,1773534649925,-153.58,0.0003105,2]
[408382675,1773534649934,-3505.64962518,0.00031203,38]
[408382676,1773534649943,-923.0,0.00031205,2]
[408382677,1773534649952,-1078.085,0.00031205,2]
[408382678,1773534649961,-848.0,0.00031332,3]
[408382679,1773534649970,-19929.05087484,0.0003143,4]
[408382680,1773534649979,-150.0,0.0003147,2]
[408382681,1773534649988,-198.69170064,0.000315,2]
[408382682,1773534649998,-150.0,0.000315,2]
[408382683,1773534650007,-2400.0,0.0003175,14]
[408382684,1773534650016,-1100.0,0.0003175,14]
[408382685,1773534650026,-700.0,0.0003175,14]
[408382686,1773534650036,-3283.22876138,0.00031913,40]
[408382687,1773534650045,-151.0,0.00031913,7]
[408382688,1773534650055,-151.0,0.00031913,7]
[408382689,1773534650064,-900.2669457,0.000323,2]
[408382690,1773534650073,-347.07,0.00032877,2]
[408382691,1773534650085,-697.14,0.00032877,2]
[408382692,1773534650095,-1000.0,0.00032877,120]
[408382693,1773534650104,-154.53082537,0.00032877,2]
[408382694,1773534650113,-1129.5,0.000329,14]
[408382695,1773534650123,-4385.14,0.000329,2]
[408382696,1773534650133,-1481.56,0.000329,30]
[408382697,1773534650143,-168.74,0.000329,7]
[408382698,1773534650153,-154.6486644,0.00033,2]
[408382699,1773534650164,-563.956309,0.00033,14]
[408382700,1773534650173,-696.0,0.00033,2]
[408382701,1773534650182,-150.0,0.00033043,2]
[408382702,1773534650192,-14163.47126231,0.00033074,2]
[408382703,1773534650201,-1000.0,0.00033151,120]
[408382704,1773534650210,-858.0,0.00033298,11]
[408382705,1773534650220,-153.58,0.00033333,2]
[408382706,1773534650228,-2400.0,0.00033394,14]
[408382707,1773534650238,-1100.0,0.00033394,14]
[408382708,1773534650247,-700.0,0.00033394,14]
[408382709,1773534650257,-1000.0,0.00033425,120]
[408382710,1773534650267,-1219.95789832,0.000335,2]
[408382711,1773534650276,-1000.0,0.00033699,120]
[408382712,1773534650286,-168.74,0.000337,7]
[408382713,1773534650295,-4385.14,0.000338,2]
[408382714,1773534650304,-1000.0,0.00033973,120]
[408382715,1773534650313,-500.0,0.00033999,120]
[408382716,1773534650323,-1481.56,0.00034,30]
[408382717,1773534650332,-14128.95461308,0.00034,4]
[408382718,1773534650342,-214.21527997,0.00034,120]
[408382719,1773534650351,-2000.0,0.00034,2]
[408382720,1773534650360,-1185.86,0.00034,120]
[408382721,1773534650369,-6073.95662517,0.00034006,47]
[408382722,1773534650378,-923.0,0.00034205,2]
[408382723,1773534650388,-1000.0,0.00034247,120]
[408382724,1773534650398,-1743.68912336,0.0003449,2]
[408382725,1773534650407,-1000.0,0.00034521,120]
[408382726,1773534650416,-2821.52,0.00034555,2]
[408382727,1773534650426,-150.0,0.00034696,2]
[408382728,1773534650436,-1500.0,0.00034795,2]
[408382729,1773534650445,-1000.0,0.00034795,120]
[408382730,1773534650454,-1481.56,0.000349,30]
[408382731,1773534650464,-455.50050313,0.00034929,2]
[408382732,1773534650474,-500.0,0.00034999,120]
[408382733,1773534650483,-1061.27454403,0.00034999,30]
[408382734,1773534650492,-1931.15178419,0.00035,2]
[408382735,1773534650502,-2809.06792904,0.00035,30]
[408382736,1773534650512,-9629.41633237,0.00035,30]
[408382737,1773534650521,-9285.424544,0.00035,30]
[408382738,1773534650531,-1564.96265,0.00035,120]
[408382739,1773534650541,-125245.59745804,0.00035,4]
[408382740,1773534651171,-500.0,0.00013698,2]
[408382741,1773534651180,-500.0,0.00013972,2]
[408382742,1773534651190,-500.0,0.00022205,2]
[408382743,1773534651201,-543.0,0.00022205,2]
[408382744,1773534651209,-444.45499959,0.00025205,2]
[408382745,1773534651221,-598.54500041,0.00025205,2]
[408382746,1773534651230,-1043.0,0.00028205,2]